bitfinex-derivatives/quotes_SOLF0:USTF0_20250818
["timestamp","ask_amount","ask_price","bid_price","bid_amount"]
[1755511426774,2.93137923,181.09,181.05,5.5199]
[1755511427069,2.93137923,181.09,181.06,2.89]
[1755511427472,2.93137923,181.09,181.07,2.89]
[1755511427672,2.93137923,181.09,180.99,218.57178967]
[1755511427870,2.93137923,181.09,181.08,2.89]
[1755511428276,2.93137923,181.09,181.0,2.89]
[1755511428471,2.93137923,181.09,181.01,2.89]
[1755511429273,2.93137923,181.09,181.04,2.89]
[1755511429681,2.93137923,181.09,181.0,214.0]
[1755511429873,2.93137923,181.09,181.01,2.89]
[1755511431374,2.93137923,181.09,181.01,8.4111]
[1755511431571,2.93137923,181.09,181.02,2.89]
[1755511432377,2.93137923,181.09,181.02,8.4111]
[1755511432679,2.93137923,181.09,181.03,3.18]
[1755511433081,2.93137923,181.09,181.01,5.5212]
[1755511433277,4.57178967,181.07,180.98,3.18]
[1755511433472,3.14,181.06,180.98,3.18]
[1755511433875,0.0385579,181.04,180.98,3.18]
[1755511434174,3.14,181.03,180.98,3.18]
[1755511434972,0.0385579,181.04,181.0,3.18]
[1755511435173,3.14,181.01,181.0,3.18]
[1755511435575,3.14,181.06,181.0,3.18]
[1755511435781,3.17892139,181.02,181.01,3.18]
[1755511440389,3.14,181.01,180.98,3.18]
[1755511441084,3.14,181.01,180.98,5.5222]
[1755511441285,3.14,181.01,180.99,3.18]
[1755511441484,3.14,181.01,180.95,3.18]
[1755511441685,3.14,181.0,180.97,3.18]
[1755511441890,3.14,181.0,180.98,3.18]
[1755511442189,3.17892139,181.02,180.99,3.18]
[1755511442386,3.14,181.01,180.99,3.18]
[1755511442584,3.14,181.01,181.0,3.18]
[1755511446991,0.03892139,181.02,181.0,3.18]
[1755511447292,3.17892139,181.02,181.0,3.18]
[1755511447892,3.17892139,181.02,181.01,3.18]
[1755511448196,0.03892139,181.02,181.01,3.18]
[1755511448588,0.03892139,181.02,181.01,8.7014]
[1755511448786,3.14,181.1,181.01,3.18]
[1755511449383,3.14,181.1,181.04,5.5202]
[1755511449582,3.14,181.1,180.99,4.57178967]
[1755511449583,3.14,181.1,181.06,3.18]
[1755511449791,3.14,181.1,180.99,4.57178967]
[1755511449991,3.14,181.1,181.04,3.18]
[1755511450198,3.14,181.1,181.02,3.18]
[1755511450393,3.14,181.1,181.03,0.03655669]
[1755511450891,3.14,181.1,181.03,3.21655669]
[1755511452192,3.14,181.1,181.03,0.03655669]
[1755511452996,3.14,181.1,181.03,3.21655669]
[1755511456702,3.14,181.08,181.03,3.21655669]
[1755511457202,3.14,181.08,181.01,3.18]
[1755511457501,3.14,181.05,181.01,3.18]
[1755511458102,3.14,181.05,181.01,3.21880616]
[1755511458291,3.14,181.05,181.01,0.03880616]
[1755511458496,141.92,181.08,181.01,0.03880616]
[1755511458497,4.57178967,181.03,181.01,0.03880616]
[1755511458702,3.14,181.02,181.01,0.03880616]
[1755511459001,3.14,181.02,180.96,3.18]
[1755511460997,3.14,181.02,180.9,4.57178967]
[1755511461195,3.14,180.99,180.94,3.18]
[1755511461801,0.04202551,180.98,180.89,5.5248]
[1755511461994,3.18202551,180.98,180.88,3.18]
[1755511462199,3.18202551,180.98,180.93,3.12]
[1755511462403,3.14,180.98,180.93,3.12]
[1755511462794,4.57178967,181.02,180.93,3.12]
[1755511462795,2.94911139,180.97,180.93,3.12]
[1755511462998,2.94911139,180.97,180.92,3.12]
[1755511463400,2.91,180.96,180.92,3.12]
[1755511463603,0.03911139,180.97,180.94,3.12]
[1755511464099,2.91,181.06,180.87,3.12]
[1755511464300,2.91,181.06,180.84,214.96176434]
[1755511464301,2.91,180.97,180.88,3.12]
[1755511465508,0.03775959,180.94,180.88,3.12]
[1755511465901,2.91,180.92,180.88,3.12]
[1755511466600,2.91,180.91,180.88,3.12]
[1755511467006,0.03775959,180.94,180.88,3.12]
[1755511467306,2.91,180.93,180.88,3.12]
[1755511467696,0.03775959,180.94,180.88,3.12]
[1755511467900,2.91,180.91,180.88,3.12]
[1755511468097,2.91,180.9,180.89,3.12]
[1755511468696,2.91,180.95,180.89,3.12]
[1755511469004,0.03948879,180.91,180.89,3.12]
[1755511469201,2.91,180.98,180.89,3.12]
[1755511469604,2.91,180.98,180.89,8.6449]
[1755511469805,0.03755663,180.95,180.9,3.12]
[1755511470405,0.03755663,180.95,180.9,8.6446]
[1755511471203,0.03755663,180.95,180.91,3.12]
[1755511471810,2.91,180.93,180.9,3.12]
[1755511471998,2.91,180.92,180.91,3.12]
[1755511475500,2.91,180.92,180.89,3.12]
[1755511475501,2.91,180.91,180.89,3.12]
[1755511475705,0.0391473,180.93,180.87,3.12]
[1755511475706,2.91,180.9,180.87,3.12]
[1755511475901,2.91,180.92,180.81,3.12]
[1755511476101,4.43137506,180.91,180.84,5.5263]
[1755511476406,0.03552532,180.9,180.85,3.12]
[1755511476606,2.91,180.89,180.85,3.12]
[1755511479709,0.03552532,180.9,180.85,3.12]
[1755511479915,2.91,180.88,180.85,3.12]
[1755511480114,2.91,180.88,180.78,7.69178967]
[1755511480408,2.91,180.88,180.81,3.12]
[1755511480805,0.04103981,180.86,180.81,3.12]
[1755511481008,2.91,180.85,180.81,3.12]
[1755511486423,0.04103981,180.86,180.77,121.45244124]
[1755511486614,2.91,180.84,180.82,3.12]
[1755511487315,2.91,180.83,180.82,3.12]
[1755511487721,2.91,180.85,180.77,121.45244124]
[1755511488015,2.91,180.84,180.83,3.12]
[1755511489520,0.03664576,180.85,180.84,3.12]
[1755511491120,0.03664576,180.85,180.84,8.6465]
[1755511492222,0.03664576,180.85,180.84,3.12]
[1755511493127,0.03664576,180.85,180.84,8.6465]
[1755511496523,3.09,180.95,180.88,3.07]
[1755511496720,3.09,180.93,180.88,3.07]
[1755511496922,3.09,180.91,180.87,5.5254]
[1755511497120,3.09,180.91,180.88,3.07]
[1755511497418,4.4264388,180.9,180.88,3.07]
[1755511497623,3.09,180.91,180.88,3.07]
[1755511497825,3.09,180.89,180.88,3.11193009]
[1755511499418,6.1452588,180.96,180.88,3.11193009]
[1755511499625,3.09,180.9,180.89,3.07]
[1755511499819,7.52138514,180.9,180.89,3.07]
[1755511500622,3.09,180.95,180.89,3.07]
[1755511500826,3.09,180.97,180.9,3.07]
[1755511501019,4.43222815,180.96,180.9,3.07]
[1755511501324,4.43222815,180.95,180.92,5.56625431]
[1755511501514,3.09,180.94,180.93,3.07]
[1755511502024,3.09,180.93,180.92,3.07]
[1755511502220,7.4955307,180.93,180.92,3.11015064]
[1755511503129,7.4955307,180.93,180.92,0.04015064]
[1755511503824,3.09,180.93,180.92,0.04015064]
[1755511504420,3.09,180.93,180.92,3.11015064]
[1755511505622,3.09,180.93,180.92,0.04015064]
[1755511506128,3.09,180.92,180.85,3.07]
[1755511507320,0.0391895,180.9,180.85,3.07]
[1755511507530,3.09,180.88,180.85,3.07]
[1755511507924,0.0391895,180.9,180.85,5.526]
[1755511508231,3.1291895,180.9,180.84,3.07]
[1755511508633,0.0391895,180.9,180.84,3.07]
[1755511508826,3.09,180.89,180.84,3.07]
[1755511509022,3.09,180.89,180.83,3.07]
[1755511509228,3.09,180.86,180.78,3.07]
[1755511509923,3.09,180.83,180.78,3.07]
[1755511510123,3.09,180.82,180.78,8.5981]
[1755511510329,3.09,180.82,180.79,3.07]
[1755511510734,3.1256421,180.82,180.8,3.07]
[1755511510934,3.1256421,180.82,180.81,3.07]
[1755511512026,3.09,180.81,180.79,3.07]
[1755511512227,3.09,180.8,180.79,3.07]
[1755511513830,3.1256421,180.82,180.79,3.07]
[1755511514134,3.09,180.81,180.8,3.07]
[1755511514934,3.1256421,180.82,180.81,3.07]
[1755511517426,3.1256421,180.82,180.81,8.5974]
[1755511518040,0.0356421,180.82,180.81,8.5974]
[1755511518243,3.09,180.88,180.81,3.63]
[1755511518427,4.57178967,180.94,180.82,4.57178967]
[1755511518741,3.09,180.9,180.86,5.5256]
[1755511518933,3.09,180.9,180.87,3.07]
[1755511519436,3.09,180.9,180.87,3.10699563]
[1755511520131,3.09,180.89,180.88,3.07]
[1755511520532,4.57178967,180.94,180.87,0.03699563]
[1755511520740,3.09,180.88,180.87,0.03699563]
[1755511521336,3.09,180.88,180.82,3.07]
[1755511521529,3.09,180.88,180.8,3.07]
[1755511521933,3.12702016,180.89,180.81,4.57178967]
[1755511522134,3.12702016,180.89,180.84,5.5263]
[1755511522338,4.57178967,180.94,180.81,4.57178967]
[1755511522530,2.96,180.92,180.82,2.91]
[1755511522729,0.03889395,180.88,180.83,5.5266]
[1755511522935,0.03889395,180.88,180.84,2.91]
[1755511523636,0.03889395,180.88,180.85,5.5261]
[1755511523837,2.99889395,180.88,180.87,2.91]
[1755511527043,2.96,180.87,180.86,2.91]
[1755511529146,0.03889395,180.88,180.86,2.91]
[1755511529448,0.03889395,180.88,180.87,2.91]
[1755511532250,0.03889395,180.88,180.87,8.4356]
[1755511532446,0.03889395,180.88,180.87,2.91]
[1755511534854,0.03889395,180.88,180.87,8.4356]
[1755511536048,2.99889395,180.88,180.87,8.4356]
[1755511537652,0.03889395,180.88,180.87,8.4356]
[1755511538355,2.99889395,180.88,180.87,2.91]
[1755511542561,2.99889395,180.88,180.87,8.4356]
[1755511542761,0.03889395,180.88,180.87,8.4356]
[1755511543157,4.57178967,180.99,180.9,5.5245]
[1755511543458,2.96,180.94,180.88,2.91]
[1755511543656,2.96,180.94,180.89,2.91]
[1755511543861,2.96,180.94,180.91,8.4342]
[1755511544253,2.96,180.94,180.92,2.91]
[1755511544669,2.96,180.94,180.91,0.04019087]
[1755511544866,3.99628465,180.93,180.91,0.04019087]
[1755511545059,2.96,180.92,180.91,0.04019087]
[1755511546565,6.95824213,180.92,180.91,0.04019087]
[1755511548669,2.96,180.92,180.91,0.04019087]
[1755511550069,2.96,180.92,180.91,2.95019087]
[1755511553372,3.1,180.94,180.91,2.95019087]
[1755511553971,3.1,180.98,180.92,3.07]
[1755511554165,3.1,180.96,180.92,3.07]
[1755511555073,3.1,180.96,180.93,5.5236]
[1755511555268,3.1,180.96,180.95,3.07]
[1755511555470,7.09928935,180.96,180.95,3.07]
[1755511555971,378.87178967,181.02,180.95,3.07]
[1755511556169,3.99891625,181.01,180.95,3.07]
[1755511556365,3.99891625,181.0,180.98,5.5221]
[1755511556571,3.1,181.04,180.95,214.0]
[1755511556769,3.99634404,181.03,180.96,3.10958914]
[1755511556966,3.99634404,181.02,180.97,5.5223]
[1755511557167,3.1,181.04,180.96,214.03958914]
[1755511557374,3.99633485,181.03,180.98,3.07]
[1755511557572,3.1,181.03,180.98,3.07]
[1755511558073,142.58,181.05,181.0,3.07]
[1755511558279,3.99423454,181.04,181.0,3.07]
[1755511558575,3.99423454,181.03,181.0,3.07]
[1755511558776,3.1,181.04,181.0,3.07]
[1755511558978,3.1,181.02,181.0,3.07]
[1755511559173,3.1,181.01,181.0,3.07]
[1755511559574,3.1,181.04,180.99,0.03555461]
[1755511559776,3.1,181.02,180.99,3.10555461]
[1755511559976,3.1,181.02,181.0,3.07]
[1755511560373,142.58,181.05,181.0,3.07]
[1755511560569,3.1,181.09,181.01,3.07]
[1755511560774,3.1,181.07,181.01,3.07]
[1755511560985,3.1,181.05,181.02,3.07]
[1755511561282,3.1,181.09,181.03,3.07]
[1755511561577,3.1,181.07,181.03,3.07]
[1755511561779,3.98929089,181.06,181.02,0.03563484]
[1755511562083,3.1,181.04,181.02,0.03563484]
[1755511562378,3.1,181.05,181.03,3.07]
[1755511562579,3.1,181.05,181.02,0.03563484]
[1755511562880,145.62,181.1,181.03,3.07]
[1755511563078,7.08847989,181.09,181.03,3.07]
[1755511563280,3.98847989,181.08,181.03,3.07]
[1755511563482,3.1,181.07,181.03,3.07]
[1755511564179,3.1,181.09,181.04,3.07]
[1755511564575,3.1,181.11,181.08,3.07]
[1755511564777,371.34,181.12,181.03,4.57178967]
[1755511564975,3.1,181.11,181.04,3.07]
[1755511565381,3.1,181.1,181.07,3.07]
[1755511565886,374.44,181.12,181.06,3.10775432]
[1755511566085,3.1,181.11,181.06,3.10775432]
[1755511566584,371.34,181.12,181.07,8.5893]
[1755511566787,374.44,181.12,181.08,3.07]
[1755511567286,3.1,181.12,181.08,3.07]
[1755511567780,3.1,181.12,181.08,8.5892]
[1755511567987,3.1,181.12,181.08,3.07]
[1755511568779,3.1,181.12,181.06,214.03775432]
[1755511568780,3.1,181.12,181.1,3.07]
[1755511568979,3.1,181.12,181.11,3.07]
[1755511571084,82.34192509,181.17,181.11,3.07]
[1755511571279,3.1,181.15,181.11,3.07]
[1755511571787,3.1,181.16,181.11,3.07]
[1755511571982,224.76192509,181.17,181.11,3.07]
[1755511572176,142.42,181.17,181.14,3.07]
[1755511572380,142.42,181.17,181.15,3.07]
[1755511572678,3.1,181.16,181.13,3.07]
[1755511572882,3.1,181.16,181.15,3.07]
[1755511573577,142.42,181.17,181.15,3.07]
[1755511573779,142.38,181.21,181.17,5.5164]
[1755511573984,142.38,181.21,181.18,3.07]
[1755511574592,145.48,181.21,181.18,3.11030724]
[1755511576080,3.1,181.23,181.18,5.55640724]
[1755511576285,145.44,181.23,181.19,3.07]
[1755511576582,142.34,181.23,181.18,0.04030724]
[1755511576782,142.34,181.23,181.19,3.07]
[1755511577182,370.94,181.32,181.24,3.07]
[1755511577385,3.1,181.28,181.24,3.07]
[1755511577584,142.34,181.29,181.24,5.5141]
[1755511577886,3.1,181.28,181.25,3.07]
[1755511578189,3.1,181.28,181.24,5.55437344]
[1755511578489,3.1,181.26,181.25,3.07]
[1755511579385,3.1,181.28,181.25,3.07]
[1755511579591,145.44,181.29,181.26,3.07]
[1755511579779,3.1,181.28,181.24,0.04027344]
[1755511579979,142.34,181.29,181.25,3.07]
[1755511580185,145.44,181.29,181.25,3.07]
[1755511580488,142.34,181.29,181.25,8.5839]
[1755511580689,142.34,181.29,181.24,0.04027344]
[1755511580889,3.1,181.27,181.25,3.07]
[1755511581083,142.34,181.29,181.25,3.07]
[1755511581286,3.1,181.28,181.25,3.07]
[1755511581487,142.34,181.29,181.26,3.07]
[1755511581682,3.1,181.27,181.26,3.07]
[1755511582087,142.34,181.29,181.24,0.04027344]
[1755511582393,2.89,181.27,181.25,3.14]
[1755511582594,2.89,181.27,181.26,3.14]
[1755511583888,2.89,181.26,181.25,3.14]
[1755511584391,142.34,181.29,181.24,3.18027344]
[1755511584595,2.89,181.25,181.24,3.18027344]
[1755511585392,2.89,181.28,181.25,3.14]
[1755511589098,2.89,181.28,181.24,0.04027344]
[1755511590197,2.89,181.28,181.24,3.18027344]
[1755511590597,2.89,181.28,181.24,0.04027344]
[1755511591594,2.89,181.28,181.25,3.14]
[1755511591796,2.89,181.27,181.25,3.14]
[1755511592198,143.30047693,181.29,181.24,0.04027344]
[1755511592400,143.30047693,181.29,181.24,3.18027344]
[1755511592401,2.89,181.28,181.24,3.18027344]
[1755511593201,2.89,181.28,181.24,0.04027344]
[1755511593998,2.89,181.28,181.24,3.18027344]
[1755511594298,2.89,181.27,181.24,0.04027344]
[1755511594499,2.89,181.26,181.24,0.04027344]
[1755511594807,145.05,181.25,181.24,0.04027344]
[1755511596697,148.98724285,181.25,181.24,0.04027344]
[1755511597292,145.05,181.25,181.24,0.04027344]
[1755511597496,148.99088978,181.25,181.24,0.04027344]
[1755511602507,148.99088978,181.25,181.24,3.18027344]
[1755511602698,6.83088978,181.25,181.24,3.18027344]
[1755511603009,146.06088978,181.25,181.24,3.18027344]
[1755511603598,148.95088978,181.25,181.24,3.18027344]
[1755511604109,148.95088978,181.25,181.24,0.04027344]
[1755511606903,153.34424148,181.25,181.24,0.04027344]
[1755511607104,148.95088978,181.25,181.24,0.04027344]
[1755511607300,153.34809999,181.25,181.24,0.04027344]
[1755511607811,153.34867996,181.25,181.24,0.04027344]
[1755511610511,2.89,181.24,181.19,3.14]
[1755511610712,2.89,181.22,181.2,3.14]
[1755511610911,148.89088978,181.21,181.2,3.14]
[1755511611709,146.00088978,181.21,181.17,3.14]
[1755511612012,8.35126133,181.2,181.1,214.0]
[1755511612214,2.89,181.18,181.17,3.14]
[1755511612410,6.83088978,181.18,181.1,214.0]
[1755511612716,3.13,181.15,181.11,3.13]
[1755511613016,145.98088978,181.14,181.11,3.13]
[1755511613208,142.04,181.14,181.12,3.13]
[1755511613409,142.0808866,181.14,181.12,3.13]
[1755511616117,142.04,181.17,181.12,3.13]
[1755511616318,142.04,181.17,181.13,3.13]
[1755511616919,142.04,181.17,181.12,214.0]
[1755511617119,3.13,181.15,181.12,217.13]
[1755511617315,3.13,181.16,181.13,3.13]
[1755511617614,142.04,181.17,181.13,3.13]
[1755511618015,142.04,181.17,181.13,8.6479]
[1755511618218,142.04,181.17,181.14,3.13]
[1755511618618,142.04,181.17,181.15,3.13]
[1755511618822,3.13,181.16,181.15,3.13]
[1755511619818,142.04,181.17,181.11,219.55501002]
[1755511620025,145.17,181.17,181.16,3.13]
[1755511621019,142.04,181.17,181.16,3.13]
[1755511621524,145.17,181.17,181.16,3.13]
[1755511622324,3.13,181.16,181.15,3.17155048]
[1755511622926,145.17,181.17,181.16,3.13]
[1755511625323,142.04,181.17,181.16,3.13]
[1755511625630,3.13,181.25,181.16,214.56]
[1755511625830,3.9896084,181.24,181.2,5.5157]
[1755511626024,3.13,181.25,181.21,3.13]
[1755511626323,3.98921947,181.24,181.2,0.0394727]
[1755511626531,7.12006838,181.23,181.2,0.0394727]
[1755511626732,3.13,181.25,181.2,0.0394727]
[1755511626925,3.13,181.23,181.2,0.0394727]
[1755511628831,3.13,181.21,181.2,0.0394727]
[1755511629231,11.69382187,181.21,181.2,0.0394727]
[1755511629426,11.69382187,181.21,181.14,3.13]
[1755511629632,3.13,181.19,181.14,3.13]
[1755511629828,3.13,181.17,181.14,3.13]
[1755511630131,3.13,181.17,181.09,3.13]
[1755511630430,3.13,181.17,181.1,3.13]
[1755511630832,0.04101483,181.15,181.1,3.13]
[1755511631135,3.13,181.14,181.1,3.13]
[1755511631536,3.13,181.13,181.1,3.13]
[1755511633131,0.04101483,181.15,181.11,3.13]
[1755511633333,0.04101483,181.15,181.14,3.13]
[1755511634445,0.04101483,181.15,181.14,8.6476]
[1755511634635,0.04101483,181.15,181.14,5.5176]
[1755511634934,0.04101483,181.15,181.14,3.13]
[1755511637236,0.04101483,181.15,181.08,4.57178967]
[1755511637437,3.13,181.14,181.11,3.13]
[1755511638247,3.13,181.14,181.09,3.13]
[1755511638545,3.13,181.14,181.07,3.13]
[1755511641040,0.04101483,181.15,181.09,3.13]
[1755511641240,3.17101483,181.15,181.09,3.13]
[1755511641440,3.17101483,181.15,181.06,3.13]
[1755511641441,3.13,181.13,181.06,3.13]
[1755511642140,3.99880713,181.12,181.06,3.13]
[1755511642342,3.03646366,181.11,181.06,3.13]
[1755511643242,3.03646366,181.11,181.07,3.12]
[1755511644456,3.03646366,181.11,181.05,3.12]
[1755511646555,3.03646366,181.11,181.01,5.5214]
[1755511646754,3.0,181.09,181.02,3.12]
[1755511647151,3.0,181.08,180.98,5.5224]
[1755511647351,3.0,181.06,180.99,3.12]
[1755511647753,3.0,181.06,180.97,4.57178967]
[1755511648060,3.0,181.05,181.01,3.12]
[1755511648258,3.0,181.05,181.01,5.5213]
[1755511648459,0.03986477,181.03,181.01,5.5213]
[1755511648964,0.03986477,181.03,181.02,3.12]
[1755511649865,3.03986477,181.03,180.98,3.12]
[1755511650048,0.03986477,181.03,180.98,3.12]
[1755511650250,3.0,181.01,180.99,5.5221]
[1755511650454,3.0,181.01,181.0,3.12]
[1755511651560,3.0,181.01,180.93,214.0]
[1755511651561,3.0,181.01,180.95,3.12]
[1755511651756,3.0,181.01,180.95,8.6433]
[1755511652061,3.0,181.01,180.95,3.12]
[1755511652255,0.03585071,181.0,180.95,3.12]
[1755511652461,0.03585071,181.0,180.97,3.12]
[1755511652658,3.0,181.03,180.97,3.12]
[1755511652856,3.0,181.03,180.99,3.12]
[1755511653056,0.03908182,181.0,180.99,3.12]
[1755511654166,0.03908182,181.0,180.99,8.6421]
[1755511654366,3.0,181.05,180.99,4.57178967]
[1755511654554,3.0,181.05,181.01,3.12]
[1755511655655,3.0,181.05,180.97,3.12]
[1755511655861,3.0,181.05,180.95,3.12]
[1755511656162,3.0,181.05,181.01,0.0370674]
[1755511656558,3.0,181.05,180.98,3.12]
[1755511656961,3.0,181.05,181.01,0.03883516]
[1755511664574,7.57178967,181.05,181.01,0.03883516]
[1755511664772,4.57178967,181.05,181.01,0.03883516]
[1755511664974,3.0,181.04,181.01,0.03883516]
[1755511666379,3.0,181.03,181.01,0.03883516]
[1755511666773,3.0,181.03,181.0,3.12]
[1755511667781,3.0,181.03,181.0,3.15564279]
[1755511669581,3.0,181.03,181.0,0.03564279]
[1755511673483,3.0,181.03,181.01,20.0]
[1755511677587,0.56,181.02,180.79,11.0561]
[1755511677789,2.55,180.98,180.86,2.97]
[1755511677992,2.55,180.98,180.89,5.525]
[1755511678292,2.55,180.98,180.9,2.97]
[1755511678484,2.55,180.98,180.91,2.97]
[1755511678884,0.03588177,180.96,180.91,2.97]
[1755511682793,6.1452588,181.05,180.92,3.0056222]
[1755511682794,2.59,181.04,180.92,3.0056222]
[1755511682994,6.51958809,181.03,180.93,2.97]
[1755511683196,3.92958809,181.02,180.93,2.97]
[1755511683406,3.92958809,181.01,180.94,2.97]
[1755511683697,2.59,180.99,180.94,2.97]
[1755511683891,2.59,180.98,180.94,2.97]
[1755511684093,2.59,180.98,180.97,2.97]
[1755511684293,6.5188105,180.98,180.97,2.97]
[1755511685197,3.9288105,180.98,180.97,2.97]
[1755511685403,2.59,181.0,180.97,2.97]
[1755511685593,3.92995737,180.99,180.97,2.97]
[1755511685886,2.59,180.99,180.98,2.97]
[1755511686087,6.51995737,180.99,180.98,2.97]
[1755511686795,6.51995737,180.99,180.96,0.03584211]
[1755511686999,2.59,180.97,180.96,3.00584211]
[1755511687696,3.93428353,180.97,180.96,0.03584211]
[1755511687898,2.59,180.98,180.97,2.97]
[1755511688201,6.52410232,180.98,180.97,2.97]
[1755511691095,3.93410232,180.98,180.97,2.97]
[1755511698405,377.2852588,181.06,180.97,3.53]
[1755511698704,3.9468878,181.05,180.97,2.97]
[1755511698901,3.9468878,181.04,180.97,2.97]
[1755511699101,3.9468878,181.03,180.98,2.97]
[1755511699403,3.9468878,181.02,180.98,2.97]
[1755511699604,373.73,181.06,180.98,2.97]
[1755511699605,373.73,181.06,180.99,0.03763695]
[1755511699804,3.94729378,181.05,181.0,2.97]
[1755511700103,3.94729378,181.04,181.0,2.97]
[1755511700305,3.94729378,181.03,181.0,2.97]
[1755511700506,3.94729378,181.02,181.0,2.97]
[1755511700698,141.74,181.09,181.0,2.97]
[1755511700699,144.74,181.09,181.0,2.97]
[1755511700900,4.45153144,181.08,181.0,8.4917]
[1755511701100,3.0,181.07,181.01,2.97]
[1755511701395,141.74,181.09,181.01,2.97]
[1755511701396,144.74,181.09,181.01,2.97]
[1755511701600,144.74,181.09,181.02,5.5212]
[1755511701807,144.74,181.09,181.03,2.97]
[1755511702297,2.89,181.08,181.03,2.97]
[1755511702502,2.89,181.07,181.03,2.97]
[1755511704909,2.89,181.07,181.03,3.17]
[1755511705305,2.89,181.07,181.02,3.20887682]
[1755511710015,2.89,181.07,181.02,0.03887682]
[1755511710210,2.89,181.07,181.04,3.17]
[1755511711912,2.89,181.07,181.03,3.17]
[1755511712815,2.89,181.05,181.02,0.03887682]
[1755511713014,3.92347214,181.04,181.02,0.03887682]
[1755511713216,148.37347214,181.03,181.02,0.03887682]
[1755511713515,148.37347214,181.03,181.02,3.20887682]
[1755511716215,148.37347214,181.03,181.02,0.03887682]
[1755511716816,148.37347214,181.03,181.02,3.20887682]
[1755511718015,145.48347214,181.03,181.02,3.20887682]
[1755511718315,148.37347214,181.03,181.02,3.20887682]
[1755511718511,2.89,181.07,181.02,3.20887682]
[1755511718816,3.92142577,181.06,181.02,3.20887682]
[1755511719015,144.41,181.07,181.02,3.20887682]
[1755511719213,3.92117051,181.06,181.02,3.20887682]
[1755511719414,144.41,181.07,181.02,3.20887682]
[1755511719714,3.92067623,181.06,181.02,3.20887682]
[1755511719915,2.89,181.06,181.02,3.20887682]
[1755511720414,2.89,181.05,181.02,3.20887682]
[1755511722112,2.89,181.06,181.02,3.20887682]
[1755511722815,2.89,181.05,181.02,3.20887682]
[1755511723720,2.89,181.04,181.02,3.20887682]
[1755511724717,141.52,181.07,181.02,3.20887682]
[1755511725018,2.89,181.05,181.02,0.03887682]
[1755511725214,2.89,181.03,181.02,0.03887682]
[1755511726513,2.89,181.03,181.02,3.20887682]
[1755511732526,6.81331635,181.03,181.02,3.20887682]
[1755511734423,2.89,181.03,181.02,3.20887682]
[1755511735228,6.8147241,181.03,181.02,0.03887682]
[1755511736030,3.14,181.02,180.94,2.98]
[1755511736217,8.49651377,181.01,180.94,2.98]
[1755511736416,3.14,180.99,180.94,2.98]
[1755511737116,0.03973592,180.98,180.94,2.98]
[1755511737320,3.14,180.97,180.94,2.98]
[1755511737526,3.14,180.96,180.94,2.98]
[1755511740128,3.14,180.95,180.91,214.0]
[1755511740835,3.14,180.95,180.92,2.98]
[1755511741130,3.14,180.95,180.93,2.98]
[1755511741424,3.14,180.97,180.93,2.98]